[Event "Titled Tuesday Blitz November 01 Early 2022"]
[White "Shuvalova, Polina"]
[Black "Malyi, Viacheslav"]
[WhiteFideId "24171760"]
[BlackFideId "14123983"]
[WhiteElo "2392"]
[BlackElo "2291"]
[Result "0-1"]
[Round "05"]
[TimeControl "180+1"]
[Date "2022.11.02"]
[WhiteClock "0:00:36"]
[BlackClock "0:00:20"]

1. d4 {[%clk 0:03:00]}  Nf6 {[%clk 0:02:58]} 2. Nf3 {[%clk 0:02:58]}  e6 {[%clk 0:02:59]} 3. Bf4 {[%clk 0:02:57]}  d5 {[%clk 0:02:59]} 4. e3 {[%clk 0:02:56]}  Bd6 {[%clk 0:02:59]} 5. Nbd2 {[%clk 0:02:55]}  O-O {[%clk 0:03:00]} 6. Bxd6 {[%clk 0:02:53]}  Qxd6 {[%clk 0:02:59]} 7. c4 {[%clk 0:02:53]}  c5 {[%clk 0:02:57]} 8. dxc5 {[%clk 0:02:52]}  Qxc5 {[%clk 0:02:57]} 9. Rc1 {[%clk 0:02:53]}  Qa5 {[%clk 0:02:52]} 10. a3 {[%clk 0:02:52]}  Nc6 {[%clk 0:02:47]} 11. Be2 {[%clk 0:02:50]}  dxc4 {[%clk 0:02:45]} 12. Bxc4 {[%clk 0:02:49]}  Rd8 {[%clk 0:02:44]} 13. Qc2 {[%clk 0:02:36]}  Bd7 {[%clk 0:02:36]} 14. O-O {[%clk 0:02:34]}  Rac8 {[%clk 0:02:36]} 15. Nb3 {[%clk 0:02:33]}  Qb6 {[%clk 0:02:36]} 16. Be2 {[%clk 0:02:28]}  Be8 {[%clk 0:02:32]} 17. Nc5 {[%clk 0:02:26]}  h6 {[%clk 0:02:26]} 18. b4 {[%clk 0:02:25]}  Nd7 {[%clk 0:02:22]} 19. Rfd1 {[%clk 0:02:24]}  Nxc5 {[%clk 0:02:21]} 20. Rxd8 {[%clk 0:02:13]}  Rxd8 {[%clk 0:02:21]} 21. Qxc5 {[%clk 0:02:14]}  Qxc5 {[%clk 0:02:19]} 22. Rxc5 {[%clk 0:02:14]}  Kf8 {[%clk 0:02:02]} 23. h4 {[%clk 0:02:11]}  Ke7 {[%clk 0:02:01]} 24. g4 {[%clk 0:02:09]}  f6 {[%clk 0:01:55]} 25. h5 {[%clk 0:02:06]}  Rd5 {[%clk 0:01:22]} 26. Rxd5 {[%clk 0:02:05]}  exd5 {[%clk 0:01:22]} 27. Kg2 {[%clk 0:02:04]}  Ne5 {[%clk 0:01:13]} 28. Kg3 {[%clk 0:02:03]}  Nxf3 {[%clk 0:01:06]} 29. Bxf3 {[%clk 0:02:03]}  Kd6 {[%clk 0:01:06]} 30. Kf4 {[%clk 0:02:03]}  Bd7 {[%clk 0:01:06]} 31. Be2 {[%clk 0:02:01]}  Be6 {[%clk 0:01:06]} 32. Bd3 {[%clk 0:01:59]}  Bd7 {[%clk 0:01:05]} 33. Bf5 {[%clk 0:01:58]}  Be8 {[%clk 0:01:04]} 34. Bc8 {[%clk 0:01:58]}  Kc7 {[%clk 0:01:03]} 35. Be6 {[%clk 0:01:59]}  Kd6 {[%clk 0:01:02]} 36. Kf5 {[%clk 0:01:59]}  b6 {[%clk 0:01:02]} 37. Bc8 {[%clk 0:01:54]}  Bf7 {[%clk 0:01:00]} 38. f3 {[%clk 0:01:50]}  Be8 {[%clk 0:01:00]} 39. Bb7 {[%clk 0:01:49]}  Bf7 {[%clk 0:00:58]} 40. Bc8 {[%clk 0:01:47]}  Be8 {[%clk 0:00:58]} 41. Ba6 {[%clk 0:01:47]}  Bf7 {[%clk 0:00:56]} 42. Bb5 {[%clk 0:01:47]}  Ke7 {[%clk 0:00:52]} 43. Kf4 {[%clk 0:01:20]}  Kd6 {[%clk 0:00:51]} 44. Bd3 {[%clk 0:01:20]}  Be8 {[%clk 0:00:45]} 45. Bf5 {[%clk 0:01:17]}  Bf7 {[%clk 0:00:44]} 46. Kg3 {[%clk 0:01:17]}  Ke5 {[%clk 0:00:37]} 47. f4+ {[%clk 0:01:16]}  Kd6 {[%clk 0:00:37]} 48. Kf3 {[%clk 0:01:16]}  Be8 {[%clk 0:00:35]} 49. Ke2 {[%clk 0:01:16]}  Bb5+ {[%clk 0:00:34]} 50. Kd2 {[%clk 0:01:16]}  Bc4 {[%clk 0:00:34]} 51. Kc3 {[%clk 0:01:16]}  Be2 {[%clk 0:00:34]} 52. Kd4 {[%clk 0:01:16]}  Bf3 {[%clk 0:00:34]} 53. Bc8 {[%clk 0:01:12]}  Bd1 {[%clk 0:00:33]} 54. Kd3 {[%clk 0:01:09]}  Bf3 {[%clk 0:00:32]} 55. Bf5 {[%clk 0:01:08]}  Bd1 {[%clk 0:00:30]} 56. Kd2 {[%clk 0:01:09]}  Bf3 {[%clk 0:00:30]} 57. Ke1 {[%clk 0:01:09]}  Be4 {[%clk 0:00:30]} 58. Bxe4 {[%clk 0:01:01]}  dxe4 {[%clk 0:00:31]} 59. Kd2 {[%clk 0:01:02]}  Ke6 {[%clk 0:00:19]} 60. Kc3 {[%clk 0:01:00]}  f5 {[%clk 0:00:19]} 61. gxf5+ {[%clk 0:00:48]}  Kxf5 {[%clk 0:00:20]} 62. Kd4 {[%clk 0:00:49]}  Kg4 {[%clk 0:00:20]} 63. Kxe4 {[%clk 0:00:48]}  Kxh5 {[%clk 0:00:21]} 64. Kf3 {[%clk 0:00:43]}  Kg6 {[%clk 0:00:21]} 65. e4 {[%clk 0:00:43]}  Kf6 {[%clk 0:00:20]} 66. Kg4 {[%clk 0:00:43]}  g6 {[%clk 0:00:19]} 67. Kh4 {[%clk 0:00:42]}  g5+ {[%clk 0:00:17]} 68. fxg5+ {[%clk 0:00:41]}  hxg5+ {[%clk 0:00:18]} 69. Kg4 {[%clk 0:00:42]}  Ke5 {[%clk 0:00:19]} 70. Kxg5 {[%clk 0:00:42]}  Kxe4 {[%clk 0:00:19]} 71. Kf6 {[%clk 0:00:42]}  Kd4 {[%clk 0:00:19]} 72. Ke6 {[%clk 0:00:42]}  Kc4 {[%clk 0:00:20]} 73. Kd6 {[%clk 0:00:42]}  Kb3 {[%clk 0:00:20]} 74. Kc6 {[%clk 0:00:35]}  Kxa3 {[%clk 0:00:20]} 75. b5 {[%clk 0:00:36]}  Ka4 {[%clk 0:00:20]} 0-1


[Site "https://www.chess.com"]

[Event "Titled Tuesday Blitz November 01 Early 2022"]
[White "Sipahioglu, Irmak"]
[Black "Quirke, Jeffrey"]
[WhiteFideId "6307205"]
[BlackFideId "2013029"]
[WhiteElo "2099"]
[BlackElo "2202"]
[Result "1-0"]
[Round "05"]
[TimeControl "180+1"]
[Date "2022.11.02"]
[WhiteClock "0:01:53"]
[BlackClock "0:00:09"]

1. d4 {[%clk 0:03:00]}  d5 {[%clk 0:02:59]} 2. c4 {[%clk 0:03:01]}  c6 {[%clk 0:02:59]} 3. cxd5 {[%clk 0:03:01]}  cxd5 {[%clk 0:02:59]} 4. Bg5 {[%clk 0:03:02]}  Nf6 {[%clk 0:02:50]} 5. Bxf6 {[%clk 0:03:02]}  gxf6 {[%clk 0:02:50]} 6. Nc3 {[%clk 0:03:03]}  Nc6 {[%clk 0:02:48]} 7. e3 {[%clk 0:03:03]}  e6 {[%clk 0:02:38]} 8. Bd3 {[%clk 0:03:04]}  f5 {[%clk 0:02:37]} 9. Rc1 {[%clk 0:03:04]}  Bg7 {[%clk 0:02:33]} 10. Nf3 {[%clk 0:03:04]}  O-O {[%clk 0:02:31]} 11. O-O {[%clk 0:03:05]}  a6 {[%clk 0:02:28]} 12. Na4 {[%clk 0:03:05]}  Bd7 {[%clk 0:02:25]} 13. Nc5 {[%clk 0:03:05]}  Rb8 {[%clk 0:02:15]} 14. a3 {[%clk 0:03:04]}  Na7 {[%clk 0:02:07]} 15. Qe2 {[%clk 0:03:03]}  Bb5 {[%clk 0:02:06]} 16. Rc3 {[%clk 0:03:03]}  Bxd3 {[%clk 0:02:05]} 17. Qxd3 {[%clk 0:03:03]}  Nb5 {[%clk 0:02:05]} 18. Rc2 {[%clk 0:03:04]}  Nd6 {[%clk 0:02:04]} 19. Rfc1 {[%clk 0:03:04]}  Rc8 {[%clk 0:01:44]} 20. b3 {[%clk 0:03:02]}  Qe7 {[%clk 0:01:40]} 21. Ne5 {[%clk 0:03:02]}  f6 {[%clk 0:01:03]} 22. Ned7 {[%clk 0:02:58]}  Rfd8 {[%clk 0:01:01]} 23. Nb6 {[%clk 0:02:58]}  Rc6 {[%clk 0:00:59]} 24. Nca4 {[%clk 0:02:50]}  Rxc2 {[%clk 0:00:54]} 25. Rxc2 {[%clk 0:02:51]}  Nb5 {[%clk 0:00:50]} 26. b4 {[%clk 0:02:47]}  e5 {[%clk 0:00:37]} 27. dxe5 {[%clk 0:02:34]}  fxe5 {[%clk 0:00:36]} 28. Nxd5 {[%clk 0:02:29]}  Qd7 {[%clk 0:00:30]} 29. Nab6 {[%clk 0:02:28]}  Qd6 {[%clk 0:00:26]} 30. Qxf5 {[%clk 0:02:17]}  Nxa3 {[%clk 0:00:24]} 31. Rc8 {[%clk 0:02:03]}  Rxc8 {[%clk 0:00:13]} 32. Qxc8+ {[%clk 0:02:04]}  Bf8 {[%clk 0:00:12]} 33. Qxb7 {[%clk 0:01:57]}  Nc4 {[%clk 0:00:09]} 34. Nxc4 {[%clk 0:01:53]} 1-0


[Site "https://www.chess.com"]

[Event "Titled Tuesday Blitz November 01 Early 2022"]
[White "Skliarov, Viktor"]
[Black "Stribuk, Artiom"]
[WhiteFideId "14106736"]
[BlackFideId "13515659"]
[WhiteElo "2284"]
[BlackElo "2279"]
[Result "0-1"]
[Round "05"]
[TimeControl "180+1"]
[Date "2022.11.02"]
[WhiteClock "0:00:05"]
[BlackClock "0:00:10"]

1. e4 {[%clk 0:02:56]}  c5 {[%clk 0:02:58]} 2. Nf3 {[%clk 0:02:56]}  Nc6 {[%clk 0:02:58]} 3. Bb5 {[%clk 0:02:56]}  e6 {[%clk 0:02:58]} 4. Bxc6 {[%clk 0:02:56]}  bxc6 {[%clk 0:02:59]} 5. d3 {[%clk 0:02:55]}  Ne7 {[%clk 0:02:59]} 6. Qe2 {[%clk 0:02:55]}  d6 {[%clk 0:02:55]} 7. e5 {[%clk 0:02:50]}  dxe5 {[%clk 0:02:51]} 8. Nxe5 {[%clk 0:02:45]}  f6 {[%clk 0:02:50]} 9. Nc4 {[%clk 0:02:41]}  Nf5 {[%clk 0:02:43]} 10. O-O {[%clk 0:02:29]}  Be7 {[%clk 0:02:40]} 11. Nc3 {[%clk 0:02:27]}  O-O {[%clk 0:02:38]} 12. b3 {[%clk 0:02:20]}  e5 {[%clk 0:02:32]} 13. Ba3 {[%clk 0:02:16]}  Nd4 {[%clk 0:02:32]} 14. Qd1 {[%clk 0:02:16]}  Be6 {[%clk 0:02:03]} 15. Nd2 {[%clk 0:01:37]}  Nb5 {[%clk 0:01:06]} 16. Bb2 {[%clk 0:01:36]}  Bf7 {[%clk 0:01:02]} 17. Na4 {[%clk 0:01:26]}  Nd4 {[%clk 0:00:51]} 18. Ne4 {[%clk 0:01:15]}  f5 {[%clk 0:00:48]} 19. Nexc5 {[%clk 0:01:13]}  Re8 {[%clk 0:00:48]} 20. Re1 {[%clk 0:01:09]}  Bf6 {[%clk 0:00:45]} 21. Bxd4 {[%clk 0:00:42]}  Qxd4 {[%clk 0:00:44]} 22. Qf3 {[%clk 0:00:42]}  e4 {[%clk 0:00:37]} 23. dxe4 {[%clk 0:00:24]}  fxe4 {[%clk 0:00:33]} 24. Qe3 {[%clk 0:00:19]}  Qxe3 {[%clk 0:00:30]} 25. fxe3 {[%clk 0:00:19]}  Bxa1 {[%clk 0:00:30]} 26. Rxa1 {[%clk 0:00:19]}  Rad8 {[%clk 0:00:31]} 27. Rf1 {[%clk 0:00:15]}  Rd2 {[%clk 0:00:29]} 28. Rf2 {[%clk 0:00:15]}  Rd1+ {[%clk 0:00:26]} 29. Rf1 {[%clk 0:00:15]}  Red8 {[%clk 0:00:24]} 30. Nxe4 {[%clk 0:00:14]}  Bg6 {[%clk 0:00:24]} 31. Nec3 {[%clk 0:00:10]}  Rxf1+ {[%clk 0:00:22]} 32. Kxf1 {[%clk 0:00:11]}  Bxc2 {[%clk 0:00:23]} 33. Ke2 {[%clk 0:00:09]}  Bd3+ {[%clk 0:00:22]} 34. Kf3 {[%clk 0:00:08]}  Bg6 {[%clk 0:00:20]} 35. Nc5 {[%clk 0:00:06]}  Rd2 {[%clk 0:00:19]} 36. a4 {[%clk 0:00:04]}  Rc2 {[%clk 0:00:18]} 37. N5e4 {[%clk 0:00:04]}  Bf7 {[%clk 0:00:13]} 38. b4 {[%clk 0:00:03]}  Rb2 {[%clk 0:00:10]} 39. b5 {[%clk 0:00:04]}  cxb5 {[%clk 0:00:10]} 40. Nxb5 {[%clk 0:00:04]}  a6 {[%clk 0:00:09]} 41. Nd4 {[%clk 0:00:04]}  Bd5 {[%clk 0:00:09]} 42. Kf4 {[%clk 0:00:03]}  Bxe4 {[%clk 0:00:09]} 43. Kxe4 {[%clk 0:00:04]}  Rb4 {[%clk 0:00:09]} 44. a5 {[%clk 0:00:03]}  Ra4 {[%clk 0:00:09]} 45. Kd5 {[%clk 0:00:04]}  Rxa5+ {[%clk 0:00:10]} 46. Ke4 {[%clk 0:00:05]}  Ra2 {[%clk 0:00:10]} 47. Kf3 {[%clk 0:00:04]}  a5 {[%clk 0:00:11]} 48. Nb5 {[%clk 0:00:05]}  Kf7 {[%clk 0:00:10]} 0-1


[Site "https://www.chess.com"]

[Event "Titled Tuesday Blitz November 01 Early 2022"]
[White "Smietanska, Wiktoria"]
[Black "Goltseva, Ekaterina"]
[WhiteFideId "21869359"]
[BlackFideId "24173770"]
[WhiteElo "1854"]
[BlackElo "2200"]
[Result "0-1"]
[Round "05"]
[TimeControl "180+1"]
[Date "2022.11.02"]
[WhiteClock "0:00:01"]
[BlackClock "0:00:09"]

1. c4 {[%clk 0:03:00]}  e5 {[%clk 0:01:26]} 2. Nc3 {[%clk 0:02:55]}  Nc6 {[%clk 0:01:26]} 3. Nf3 {[%clk 0:02:54]}  f5 {[%clk 0:01:26]} 4. g3 {[%clk 0:02:51]}  Nf6 {[%clk 0:01:24]} 5. Bg2 {[%clk 0:02:50]}  d6 {[%clk 0:01:24]} 6. d4 {[%clk 0:02:49]}  e4 {[%clk 0:01:24]} 7. Nh4 {[%clk 0:02:47]}  Be7 {[%clk 0:01:20]} 8. O-O {[%clk 0:02:44]}  O-O {[%clk 0:01:20]} 9. a3 {[%clk 0:02:39]}  Ne8 {[%clk 0:01:16]} 10. d5 {[%clk 0:02:16]}  Ne5 {[%clk 0:01:14]} 11. f4 {[%clk 0:01:54]}  Nxc4 {[%clk 0:01:12]} 12. Qd4 {[%clk 0:01:44]}  Nb6 {[%clk 0:01:10]} 13. Kh1 {[%clk 0:01:41]}  Bxh4 {[%clk 0:01:06]} 14. gxh4 {[%clk 0:01:38]}  Qxh4 {[%clk 0:01:07]} 15. b3 {[%clk 0:01:34]}  Qf6 {[%clk 0:01:06]} 16. Qd2 {[%clk 0:01:32]}  Qf7 {[%clk 0:00:59]} 17. Bb2 {[%clk 0:01:30]}  Nf6 {[%clk 0:00:59]} 18. Rad1 {[%clk 0:01:23]}  Bd7 {[%clk 0:00:58]} 19. Rg1 {[%clk 0:01:19]}  Rad8 {[%clk 0:00:55]} 20. e3 {[%clk 0:01:19]}  c6 {[%clk 0:00:50]} 21. dxc6 {[%clk 0:01:18]}  Bxc6 {[%clk 0:00:50]} 22. Bh3 {[%clk 0:01:15]}  Nh5 {[%clk 0:00:42]} 23. Qg2 {[%clk 0:01:10]}  Nxf4 {[%clk 0:00:41]} 24. Qg3 {[%clk 0:00:52]}  Nxh3 {[%clk 0:00:38]} 25. Qxh3 {[%clk 0:00:52]}  g6 {[%clk 0:00:33]} 26. Ne2 {[%clk 0:00:45]}  Nd5 {[%clk 0:00:27]} 27. Rg3 {[%clk 0:00:35]}  Nf6 {[%clk 0:00:27]} 28. Rdg1 {[%clk 0:00:32]}  Ng4 {[%clk 0:00:25]} 29. Qg2 {[%clk 0:00:27]}  Qxb3 {[%clk 0:00:24]} 30. Nd4 {[%clk 0:00:22]}  Qf7 {[%clk 0:00:20]} 31. h3 {[%clk 0:00:19]}  Ne5 {[%clk 0:00:12]} 32. Rg5 {[%clk 0:00:16]}  Be8 {[%clk 0:00:07]} 33. Nxf5 {[%clk 0:00:14]}  Qe6 {[%clk 0:00:05]} 34. Nh6+ {[%clk 0:00:10]}  Kg7 {[%clk 0:00:06]} 35. Ng4 {[%clk 0:00:08]}  Rf5 {[%clk 0:00:05]} 36. Rxf5 {[%clk 0:00:06]}  Qxf5 {[%clk 0:00:06]} 37. Nxe5 {[%clk 0:00:05]}  dxe5 {[%clk 0:00:06]} 38. Qg3 {[%clk 0:00:05]}  Rd5 {[%clk 0:00:06]} 39. Qh4 {[%clk 0:00:02]}  Qf3+ {[%clk 0:00:06]} 40. Rg2 {[%clk 0:00:01]}  Bf7 {[%clk 0:00:05]} 41. Kh2 {[%clk 0:00:01]}  Qf5 {[%clk 0:00:05]} 42. Qg3 {[%clk 0:00:01]}  Qf3 {[%clk 0:00:04]} 43. Rf2 {[%clk 0:00:01]}  Qxg3+ {[%clk 0:00:04]} 44. Kxg3 {[%clk 0:00:02]}  Be6 {[%clk 0:00:05]} 45. Rc2 {[%clk 0:00:02]}  Rb5 {[%clk 0:00:05]} 46. Bc3 {[%clk 0:00:01]}  Kf6 {[%clk 0:00:06]} 47. Rf2+ {[%clk 0:00:01]}  Ke7 {[%clk 0:00:06]} 48. h4 {[%clk 0:00:01]}  Kd6 {[%clk 0:00:06]} 49. Rd2+ {[%clk 0:00:01]}  Bd5 {[%clk 0:00:06]} 50. Bb4+ {[%clk 0:00:02]}  Ke6 {[%clk 0:00:06]} 51. Kg4 {[%clk 0:00:03]}  a5 {[%clk 0:00:07]} 52. Bf8 {[%clk 0:00:02]}  b6 {[%clk 0:00:06]} 53. Kg5 {[%clk 0:00:02]}  Rb3 {[%clk 0:00:07]} 54. Kh6 {[%clk 0:00:02]}  Rxe3 {[%clk 0:00:07]} 55. Kxh7 {[%clk 0:00:02]}  Rh3 {[%clk 0:00:08]} 56. Kxg6 {[%clk 0:00:01]}  Rxh4 {[%clk 0:00:09]} 57. Kg5 {[%clk 0:00:01]}  Rh3 {[%clk 0:00:09]} 58. Bg7 {[%clk 0:00:01]}  e3 {[%clk 0:00:09]} 59. Rd3 {[%clk 0:00:01]}  e2 {[%clk 0:00:09]} 0-1


[Site "https://www.chess.com"]

[Event "Titled Tuesday Blitz November 01 Early 2022"]
[White "Sovetbekova, Nurai"]
[Black "Goriatchkin, Jouri"]
[WhiteFideId "13801910"]
[BlackFideId "4120183"]
[WhiteElo "1925"]
[BlackElo "1859"]
[Result "1-0"]
[Round "05"]
[TimeControl "180+1"]
[Date "2022.11.02"]
[WhiteClock "0:00:14"]
[BlackClock "0:00:19"]

1. d4 {[%clk 0:03:00]}  d5 {[%clk 0:02:59]} 2. c4 {[%clk 0:02:59]}  c6 {[%clk 0:02:56]} 3. Nf3 {[%clk 0:02:57]}  Nf6 {[%clk 0:02:56]} 4. g3 {[%clk 0:02:56]}  Bf5 {[%clk 0:02:49]} 5. Nc3 {[%clk 0:02:45]}  e6 {[%clk 0:02:49]} 6. Qb3 {[%clk 0:02:41]}  Qb6 {[%clk 0:02:48]} 7. c5 {[%clk 0:02:37]}  Qxb3 {[%clk 0:02:47]} 8. axb3 {[%clk 0:02:38]}  Na6 {[%clk 0:02:23]} 9. Bf4 {[%clk 0:01:53]}  Be7 {[%clk 0:01:29]} 10. Nh4 {[%clk 0:01:13]}  Bc2 {[%clk 0:01:26]} 11. Ra3 {[%clk 0:01:12]}  h6 {[%clk 0:01:16]} 12. Nf3 {[%clk 0:01:08]}  O-O {[%clk 0:01:04]} 13. Kd2 {[%clk 0:01:00]}  Bh7 {[%clk 0:00:59]} 14. Ne5 {[%clk 0:00:28]}  Ne4+ {[%clk 0:00:57]} 15. Nxe4 {[%clk 0:00:25]}  dxe4 {[%clk 0:00:52]} 16. Nxc6 {[%clk 0:00:20]}  bxc6 {[%clk 0:00:34]} 17. Rxa6 {[%clk 0:00:20]}  Rfc8 {[%clk 0:00:34]} 18. e3 {[%clk 0:00:17]}  g5 {[%clk 0:00:33]} 19. Be5 {[%clk 0:00:16]}  f6 {[%clk 0:00:33]} 20. Bd6 {[%clk 0:00:16]}  Bxd6 {[%clk 0:00:34]} 21. cxd6 {[%clk 0:00:17]}  Kf7 {[%clk 0:00:27]} 22. Bc4 {[%clk 0:00:15]}  Bg8 {[%clk 0:00:25]} 23. Rha1 {[%clk 0:00:15]}  Rd8 {[%clk 0:00:16]} 24. Rxc6 {[%clk 0:00:14]}  Rd7 {[%clk 0:00:16]} 25. Rc7 {[%clk 0:00:11]}  Rxc7 {[%clk 0:00:16]} 26. dxc7 {[%clk 0:00:11]}  Ke7 {[%clk 0:00:16]} 27. Rxa7 {[%clk 0:00:10]}  Rc8 {[%clk 0:00:17]} 28. Ba6 {[%clk 0:00:10]}  Kd7 {[%clk 0:00:13]} 29. Bxc8+ {[%clk 0:00:10]}  Kxc8 {[%clk 0:00:13]} 30. Ra8+ {[%clk 0:00:10]}  Kxc7 {[%clk 0:00:13]} 31. Rxg8 {[%clk 0:00:11]}  Kd6 {[%clk 0:00:14]} 32. Rg6 {[%clk 0:00:11]}  Kc6 {[%clk 0:00:15]} 33. Rxh6 {[%clk 0:00:11]}  Kb5 {[%clk 0:00:16]} 34. Rxf6 {[%clk 0:00:12]}  Kb4 {[%clk 0:00:17]} 35. Rxe6 {[%clk 0:00:12]}  Kxb3 {[%clk 0:00:17]} 36. Rxe4 {[%clk 0:00:12]}  Kxb2 {[%clk 0:00:18]} 37. d5 {[%clk 0:00:13]}  Kb3 {[%clk 0:00:19]} 38. d6 {[%clk 0:00:13]}  Ka3 {[%clk 0:00:19]} 39. d7 {[%clk 0:00:14]}  Ka2 {[%clk 0:00:20]} 40. d8=Q {[%clk 0:00:14]}  Ka3 {[%clk 0:00:19]} 41. Qb8 {[%clk 0:00:14]} 1-0


[Site "https://www.chess.com"]

[Event "Titled Tuesday Blitz November 01 Early 2022"]
[White "Tarasova, Viktoriya"]
[Black "Lohani, Sujana"]
[WhiteFideId "4175840"]
[BlackFideId "12311987"]
[WhiteElo "2182"]
[BlackElo "1691"]
[Result "1-0"]
[Round "05"]
[TimeControl "180+1"]
[Date "2022.11.02"]
[WhiteClock "0:00:15"]
[BlackClock "0:00:02"]

1. d4 {[%clk 0:03:00]}  g6 {[%clk 0:02:50]} 2. c4 {[%clk 0:02:59]}  Bg7 {[%clk 0:02:50]} 3. e4 {[%clk 0:02:59]}  d6 {[%clk 0:02:51]} 4. Nc3 {[%clk 0:02:59]}  Nf6 {[%clk 0:02:50]} 5. h3 {[%clk 0:02:59]}  O-O {[%clk 0:02:51]} 6. Be3 {[%clk 0:02:56]}  e5 {[%clk 0:02:50]} 7. d5 {[%clk 0:02:55]}  a5 {[%clk 0:02:46]} 8. g4 {[%clk 0:02:54]}  Na6 {[%clk 0:02:43]} 9. Be2 {[%clk 0:02:53]}  Nc5 {[%clk 0:02:24]} 10. Qc2 {[%clk 0:02:53]}  b6 {[%clk 0:02:21]} 11. O-O-O {[%clk 0:02:50]}  a4 {[%clk 0:02:20]} 12. g5 {[%clk 0:02:41]}  Nfd7 {[%clk 0:02:17]} 13. h4 {[%clk 0:02:39]}  a3 {[%clk 0:02:16]} 14. b3 {[%clk 0:02:34]}  f5 {[%clk 0:02:03]} 15. gxf6 {[%clk 0:02:30]}  Nxf6 {[%clk 0:02:02]} 16. h5 {[%clk 0:01:58]}  gxh5 {[%clk 0:02:00]} 17. Bg5 {[%clk 0:01:47]}  Bg4 {[%clk 0:01:50]} 18. f3 {[%clk 0:01:47]}  Bd7 {[%clk 0:01:46]} 19. Nh3 {[%clk 0:01:38]}  h6 {[%clk 0:01:45]} 20. Bh4 {[%clk 0:01:37]}  Bxh3 {[%clk 0:01:25]} 21. Rxh3 {[%clk 0:01:36]}  Qd7 {[%clk 0:01:25]} 22. Rg3 {[%clk 0:01:35]}  Kh8 {[%clk 0:01:22]} 23. Rdg1 {[%clk 0:01:34]}  Rf7 {[%clk 0:01:18]} 24. Rg6 {[%clk 0:01:32]}  Nh7 {[%clk 0:01:01]} 25. Qd2 {[%clk 0:01:30]}  Rg8 {[%clk 0:00:55]} 26. Nd1 {[%clk 0:01:26]}  Rf4 {[%clk 0:00:35]} 27. Qe1 {[%clk 0:00:52]}  Qf7 {[%clk 0:00:25]} 28. Ne3 {[%clk 0:00:47]}  Ng5 {[%clk 0:00:20]} 29. R6xg5 {[%clk 0:00:39]}  hxg5 {[%clk 0:00:19]} 30. Bxg5 {[%clk 0:00:39]}  Bf6 {[%clk 0:00:12]} 31. Bxf4 {[%clk 0:00:27]}  exf4 {[%clk 0:00:10]} 32. Nf5 {[%clk 0:00:20]}  Nd7 {[%clk 0:00:04]} 33. Rxg8+ {[%clk 0:00:16]}  Qxg8 {[%clk 0:00:03]} 34. Qh1 {[%clk 0:00:17]}  Qg5 {[%clk 0:00:03]} 35. Qh3 {[%clk 0:00:15]}  Ne5 {[%clk 0:00:02]} 36. Nd4 {[%clk 0:00:15]} 1-0


[Site "https://www.chess.com"]

[Event "Titled Tuesday Blitz November 01 Early 2022"]
[White "Terry, Renato"]
[Black "Bryakin, Mikhail"]
[WhiteFideId "3803457"]
[BlackFideId "4165314"]
[WhiteElo "2577"]
[BlackElo "2367"]
[Result "1-0"]
[Round "05"]
[TimeControl "180+1"]
[Date "2022.11.01"]
[WhiteClock "0:00:20"]
[BlackClock "0:00:18"]

1. d4 {[%clk 0:03:00]}  f5 {[%clk 0:02:53]} 2. Bg5 {[%clk 0:02:59]}  d5 {[%clk 0:02:49]} 3. e3 {[%clk 0:02:56]}  c6 {[%clk 0:02:47]} 4. c4 {[%clk 0:02:56]}  Nf6 {[%clk 0:02:45]} 5. Bxf6 {[%clk 0:02:54]}  exf6 {[%clk 0:02:46]} 6. Nc3 {[%clk 0:02:53]}  Bb4 {[%clk 0:02:43]} 7. Qb3 {[%clk 0:02:52]}  Ba5 {[%clk 0:02:29]} 8. Nh3 {[%clk 0:02:39]}  dxc4 {[%clk 0:02:25]} 9. Bxc4 {[%clk 0:02:39]}  Qb6 {[%clk 0:02:24]} 10. Qc2 {[%clk 0:02:35]}  g6 {[%clk 0:02:21]} 11. Nf4 {[%clk 0:02:33]}  Qb4 {[%clk 0:02:18]} 12. Bb3 {[%clk 0:02:31]}  Bc7 {[%clk 0:02:15]} 13. g3 {[%clk 0:02:16]}  Na6 {[%clk 0:02:14]} 14. O-O-O {[%clk 0:02:10]}  Bd7 {[%clk 0:02:12]} 15. Ne6 {[%clk 0:01:47]}  Bxe6 {[%clk 0:02:01]} 16. Bxe6 {[%clk 0:01:47]}  Qe7 {[%clk 0:01:59]} 17. Qb3 {[%clk 0:01:44]}  Qb4 {[%clk 0:01:51]} 18. Qc2 {[%clk 0:01:35]}  Qe7 {[%clk 0:01:51]} 19. Bc4 {[%clk 0:01:35]}  Nb4 {[%clk 0:01:42]} 20. Qb3 {[%clk 0:01:35]}  O-O-O {[%clk 0:01:20]} 21. a3 {[%clk 0:01:35]}  Nd5 {[%clk 0:01:20]} 22. Nxd5 {[%clk 0:01:27]}  cxd5 {[%clk 0:01:20]} 23. Bxd5 {[%clk 0:01:28]}  Bd6 {[%clk 0:01:16]} 24. Kb1 {[%clk 0:01:26]}  Kb8 {[%clk 0:01:17]} 25. Rc1 {[%clk 0:01:25]}  Rc8 {[%clk 0:01:17]} 26. Be6 {[%clk 0:01:24]}  Rxc1+ {[%clk 0:01:17]} 27. Rxc1 {[%clk 0:01:24]}  Re8 {[%clk 0:01:17]} 28. d5 {[%clk 0:01:22]}  Rd8 {[%clk 0:01:15]} 29. Rc4 {[%clk 0:01:20]}  a6 {[%clk 0:01:09]} 30. Qb6 {[%clk 0:01:18]}  Bc7 {[%clk 0:01:09]} 31. Qb3 {[%clk 0:01:18]}  Ba5 {[%clk 0:01:04]} 32. Qc2 {[%clk 0:01:12]}  Qd6 {[%clk 0:01:01]} 33. Ka2 {[%clk 0:01:10]}  Ka7 {[%clk 0:01:01]} 34. Qb3 {[%clk 0:01:08]}  Bb6 {[%clk 0:01:00]} 35. Qc3 {[%clk 0:01:08]}  Qe5 {[%clk 0:00:57]} 36. Qc2 {[%clk 0:01:05]}  Qd6 {[%clk 0:00:56]} 37. h4 {[%clk 0:01:05]}  h5 {[%clk 0:00:55]} 38. Bf7 {[%clk 0:01:03]}  g5 {[%clk 0:00:52]} 39. Qxf5 {[%clk 0:01:00]}  gxh4 {[%clk 0:00:52]} 40. gxh4 {[%clk 0:01:01]}  Qe5 {[%clk 0:00:48]} 41. Qxe5 {[%clk 0:00:45]}  fxe5 {[%clk 0:00:49]} 42. Rc2 {[%clk 0:00:45]}  Rd7 {[%clk 0:00:42]} 43. Be6 {[%clk 0:00:39]}  Rd6 {[%clk 0:00:42]} 44. Rc4 {[%clk 0:00:38]}  Bd8 {[%clk 0:00:40]} 45. Re4 {[%clk 0:00:35]}  Bf6 {[%clk 0:00:40]} 46. b4 {[%clk 0:00:36]}  Kb6 {[%clk 0:00:37]} 47. Kb3 {[%clk 0:00:34]}  a5 {[%clk 0:00:37]} 48. Bf7 {[%clk 0:00:34]}  Rd7 {[%clk 0:00:33]} 49. Be6 {[%clk 0:00:34]}  Rd8 {[%clk 0:00:29]} 50. f4 {[%clk 0:00:34]}  exf4 {[%clk 0:00:28]} 51. Rxf4 {[%clk 0:00:35]}  Be7 {[%clk 0:00:27]} 52. e4 {[%clk 0:00:32]}  axb4 {[%clk 0:00:28]} 53. axb4 {[%clk 0:00:33]}  Rf8 {[%clk 0:00:26]} 54. Bf7 {[%clk 0:00:29]}  Bd6 {[%clk 0:00:21]} 55. Rf5 {[%clk 0:00:27]}  Kc7 {[%clk 0:00:21]} 56. Kc4 {[%clk 0:00:22]}  b5+ {[%clk 0:00:21]} 57. Kd4 {[%clk 0:00:19]}  Bxb4 {[%clk 0:00:22]} 58. e5 {[%clk 0:00:20]}  Ba3 {[%clk 0:00:21]} 59. d6+ {[%clk 0:00:20]}  Kd8 {[%clk 0:00:21]} 60. Kd5 {[%clk 0:00:20]}  Rh8 {[%clk 0:00:18]} 61. e6 {[%clk 0:00:20]} 1-0


[Site "https://www.chess.com"]